Cogmind - Beta 16.1 @@@ ROGUE MODE // 2026.02.25 @ 01:22:18 Player: TheSkyeDoctor Result: Destroyed by S-10 Pest with Light Assault Rifle Performance ------------- Evolutions (1) 500 Regions Visited (2) 400 Robots Destroyed (31) 155 Value Destroyed (598) 598 Prototype IDs (1) 20 Alien Tech Used (0) 0 Bonus (0) 0 TOTAL SCORE: 1673 Bonus ------- None Cogmind --------- Core Integrity 0/400 Matter 300/300 Energy 79/250 System Corruption 0% Temperature Hot (285) Movement Rolling (215) Ox9 Location -9/Materials Parts ------- > --- POWER (1) -------- Ion Engine > --- PROPULSION (2) --- Wheel > --- UTILITY (4) ------ Heat Sink Huge Storage Unit > --- WEAPON (2) ------- Advanced Beam Cannon Advanced Beam Cannon > --- INVENTORY (25) --- Ion Engine Peak State ------------ > --- POWER ------------ Improved Ion Engine > --- PROPULSION ------- Light Treads Compact Wheel > --- UTILITY ---------- Heat Sink Huge Storage Unit > --- WEAPON ----------- Advanced Beam Cannon Advanced Beam Cannon > --- INVENTORY -------- Ion Engine Wheel Wheel [Rating: 12] Favorites ----------- Power Ion Engine Engine Ion Engine Propulsion Light Treads Treads Light Treads Wheel Compact Wheel Utility Huge Storage Unit Device Seismic Detector Storage Huge Storage Unit Weapon Advanced Beam Cannon Energy Cannon Advanced Beam Cannon Ballistic Gun Light Assault Rifle Build | -11 -10 -9 ------- Run | Yrd Mat Mat Slots Evolved 2 | . . 2 Power . | . . . Propulsion . | . . . Utility 2 | . . 2 Weapon . | . . . Parts Attached 18 | 7 . 11 Power 4 | 1 . 3 Engine 4 | 1 . 3 Core . | . . . Reactor . | . . . Propulsion 5 | 2 . 3 Treads 2 | 2 . . Leg . | . . . Wheel 3 | . . 3 Hover . | . . . Flight . | . . . Utility 4 | 2 . 2 Device 2 | 1 . 1 Storage 2 | 1 . 1 Processor . | . . . Hackware . | . . . Protection . | . . . Artifact . | . . . Weapon 5 | 2 . 3 Energy Gun . | . . . Energy Cannon 3 | . . 3 Ballistic Gun 2 | 2 . . Ballistic Cannon . | . . . Launcher . | . . . Special Weapon . | . . . Impact Weapon . | . . . Slashing Weapon . | . . . Piercing Weapon . | . . . Special Melee Weapon . | . . . Unidentified Prototypes 1 | . . 1 Parts Lost 10 | . . 10 Power 3 | . . 3 Propulsion 4 | . . 4 Utility 1 | . . 1 Weapon 2 | . . 2 Highest Loss Streak 4 | . . 4 To Critical Strikes . | . . . Average Backups 2 | 2 3 2 Power . | . 1 . Propulsion 1 | 1 2 1 Utility . | . . . Weapon . | . . . Tool/Special . | . . . Unused Backups . | . . . Power . | . . . Propulsion . | . . . Utility . | . . . Weapon . | . . . Tool/Special . | . . . Average Slot Usage (%) 75 | . 100 67 Engine 10 | . 14 9 Treads 13 | . 28 9 Wheel 7 | . . 9 Device 8 | . 14 7 Storage 11 | . 14 11 Energy Cannon 11 | . . 14 Ballistic Gun 12 | . 28 6 Peak Build Rating 12 | 7 7 12 Average Rating 8 | 5 6 9 On Entrance 4 | . 7 7 Avg Prop Armor Cover (%) 12 | . . 12 Naked Turns . | . . . Heaviest Build 96 | 14 14 96 Greatest Support 40 | 40 40 40 Greatest Overweight (x) 9 | . . 9 Average Overweight (x) 2 | . . 4 Largest Inventory Capacity 25 | 8 8 25 Average Capacity 17 | 7 8 22 Most Carried 5 | 3 3 5 Average Carried 2 | 2 3 2 Final Capacity 25 | 8 8 25 Final Carried 3 | 3 3 1 Class Distribution -------------------- 100% | Mutant Dominant Class ---------------- Mutant | -10/Materials Mutant | -9/Materials Resources | -11 -10 -9 ----------- Run | Yrd Mat Mat Matter Collected 632 | 249 20 363 Remotely . | . . . Salvage Created 816 | 158 20 638 Parts 58 | 13 4 41 Haulers Intercepted . | . . . Recyclers Shooed . | . . . Parts Field Recycled . | . . . Retrieved Matter . | . . . Parts Self-Destructed . | . . . Prevented . | . . . Parts Restored . | . . . Kills | -11 -10 -9 ------- Run | Yrd Mat Mat Combat Hostiles Destroyed 23 | . 3 20 Guns 5 | . 1 4 Cannons 15 | . . 15 AOE 2 | . 2 . Classes Destroyed 8 | 3 1 4 Worker 2 | 1 . 1 Builder 1 | . . 1 Tunneler 3 | 3 . . Recycler 1 | 1 . . Watcher 1 | . . 1 Swarmer 13 | . 3 10 Grunt 8 | . . 8 Sentry 2 | . . 2 Best Kill Streak 6 | 3 2 6 Combat Bots Only 4 | . 2 4 Max Kills in Single Turn 2 | 1 2 1 Gunslinging . | . . . Exploded 2 | . 2 . Melee . | . . . Uniques/NPCs Destroyed . | . . . Combat | -11 -10 -9 -------- Run | Yrd Mat Mat Hostile Shots Fired 206 | . 27 179 Missed 51 | . 6 45 Hits 155 | . 21 134 Projectile 155 | . 21 134 Damage Taken 1535 | . 199 1336 Core 437 | . 36 401 Absorbed by Shields . | . . . Core Remaining (%) 92 | 100 85 . Volleys Fired 108 | 20 13 75 Largest 2 | 2 2 2 Hottest 136 | 40 40 136 Shots Fired 199 | 40 26 133 Gun 122 | 40 26 56 Cannon 77 | . . 77 Launcher . | . . . Special . | . . . Kinetic 122 | 40 26 56 Thermal 77 | . . 77 Explosive . | . . . Electromagnetic . | . . . Robot Hit Streak 9 | 4 6 9 Robot Miss Streak 6 | 3 6 4 Penetration Max . | . . . Secondary Targets . | . . . Shots Hit Robots 106 | 20 8 78 Core Hits 40 | 7 4 29 Critical Kills 1 | . . 1 Critical Parts Destroyed 1 | . . 1 Critical Strikes 2 | . . 2 Meltdown 1 | . . 1 Destroy 1 | . . 1 Melee Attacks . | . . . Impact . | . . . Slashing . | . . . Piercing . | . . . Sneak Attacks . | . . . Combat Hostiles . | . . . Follow-up Attacks . | . . . Damage Inflicted 1853 | 213 329 1311 Guns 641 | 213 85 343 Cannons 968 | . . 968 Explosions 244 | . 244 . Melee . | . . . Ramming . | . . . Kinetic 641 | 213 85 343 Thermal 1212 | . 244 968 Explosive . | . . . Electromagnetic . | . . . Impact . | . . . Slashing . | . . . Piercing . | . . . Highest Corruption . | . . . Average Corruption . | . . . Corruption Purged . | . . . Corruption Blocked . | . . . Overload Shots . | . . . Overflow Damage 12 | . . 12 Projectiles 12 | . . 12 Explosions . | . . . Melee . | . . . Knockbacks . | . . . Impact . | . . . Kinetic . | . . . Secondary . | . . . Self-Inflicted Damage 40 | . 40 . Shots 1 | . 1 . Rammed . | . . . Targets Rammed . | . . . Kicked . | . . . Crushed . | . . . Highest Temperature 438 | . . 438 Average Temperature 138 | . . 138 Received Heat Transfer 327 | . . 327 Effects 2 | . . 2 Energy Bleed 1 | . . 1 Interference 1 | . . 1 Siege Activations . | . . . Martial Activations . | . . . Shielding Activations . | . . . Robots Disrupted . | . . . Combat Hostiles . | . . . Robots Corrupted . | . . . Combat Hostiles . | . . . Parts Fried . | . . . Impact Corruptions . | . . . Robots Melted 1 | . . 1 Combat Hostiles 1 | . . 1 Parts Melted 6 | . . 6 Heat Transferred 1889 | . 150 1739 Parts Sabotaged . | . . . Parts Stolen . | . . . Parts Stripped . | . . . Power Chain Reactions . | . . . Alert | -11 -10 -9 ------- Run | Yrd Mat Mat Maximum Alert Level 1 | . . 1 Low Security (%) 97 | 100 100 96 Level 1 2 | . . 3 Level 2 . | . . . Level 3 . | . . . Level 4 . | . . . Level 5 . | . . . High Security . | . . . Max Security . | . . . Peak Influence 292 | 5 151 292 Initial 59 | . 3 59 Average 77 | 1 32 112 Influence Increases 801 | 25 181 595 Destroy 0b10 Robot/C 460 | . 60 400 Destroy 0b10 Robot/NC 40 | 25 . 15 Destroy Leader 112 | . 10 102 Disable Machine 45 | . 30 15 Destroy Structure 39 | . 36 3 Lose Combat Pursuer 105 | . 45 60 Influence Decreases 509 | 20 45 444 Entered New Map 84 | . 2 82 Time Decay 325 | 20 43 262 Lost Part 100 | . . 100 Squads Dispatched 4 | . 1 3 Investigation 1 | . . 1 Extermination . | . . . Reinforcement 3 | . 1 2 Assault . | . . . Garrison . | . . . Intercept . | . . . Searches Triggered . | . . . Construction Impeded . | . . . Haulers Reinforced . | . . . Active Scanning Responses . | . . . Cargo Convoy Interrupts . | . . . Stealth | -11 -10 -9 --------- Run | Yrd Mat Mat Distress Signals 2 | . . 2 Communications Jammed . | . . . Distress Signals . | . . . Times Spotted 39 | . 7 32 Peak Tracking Total 8 | . 4 8 Tactical Retreats 4 | . 1 3 Traps | -11 -10 -9 ------- Run | Yrd Mat Mat Traps Triggered 2 | . 1 1 Indirectly . | . . . Trap Hack Attempts . | . . . Triggered . | . . . Disarmed . | . . . Reprogrammed . | . . . Reused . | . . . Traps Extracted . | . . . Installed . | . . . Triggered . | . . . Machines | -11 -10 -9 ---------- Run | Yrd Mat Mat Machines Disabled 3 | . 2 1 Max in Single Turn 2 | . 2 1 Machines Repaired . | . . . Machines Dismantled . | . . . Machines Sabotaged . | . . . Overloaded Fab Kills . | . . . Hacking | -11 -10 -9 --------- Run | Yrd Mat Mat Machines Accessed 1 | . . 1 Terminals 1 | . . 1 Fabricators . | . . . Repair Stations . | . . . Recycling Units . | . . . Scanalyzers . | . . . Garrison Access . | . . . Total Hacks 3 | . . 3 Successful . | . . . Failed 3 | . . 3 Catastrophic . | . . . Database Lockouts . | . . . Manual 3 | . . 3 Terminals 3 | . . 3 Fabricators . | . . . Repair Stations . | . . . Recycling Units . | . . . Scanalyzers . | . . . Garrison Access . | . . . Terminal Hacks . | . . . Fabricator Hacks . | . . . Repair Station Hacks . | . . . Recycling Unit Hacks . | . . . Scanalyzer . | . . . Garrison Access Hacks . | . . . Unauthorized Hacks . | . . . Terminals . | . . . Fabricators . | . . . Repair Stations . | . . . Recycling Units . | . . . Scanalyzers . | . . . Garrison Access . | . . . Data Cores Recovered . | . . . Used . | . . . Hacking Detections 1 | . . 1 Full Trace Events . | . . . Feedback Events . | . . . Feedback Blocked . | . . . Robot Schematics Acquired . | . . . Robots Built . | . . . Authchips . | . . . Time . | . . . Total Robot Build Rating . | . . . Part Schematics Acquired . | . . . Parts Built . | . . . Authchips . | . . . Time . | . . . Total Part Build Rating . | . . . Part Studies Acquired . | . . . Parts Repaired . | . . . Time . | . . . Parts Recycled . | . . . Recycled Matter . | . . . Retrieved Matter . | . . . Retrieved Components . | . . . Parts Scanalyzed . | . . . Part Schematics Acquired . | . . . Parts Damaged . | . . . Bothacking | -11 -10 -9 ------------ Run | Yrd Mat Mat Used RIF Installer . | . . . Robots Hacked . | . . . Non-combat . | . . . Combat . | . . . Robot Hacks Applied . | . . . Relay Couplers Released . | . . . Fabnet Peak Effective % . | . . . Robots Rewired . | . . . Allies Hacked . | . . . Hacks Repelled . | . . . Allies | -11 -10 -9 -------- Run | Yrd Mat Mat Total Allies . | . . . Largest Group . | . . . Highest-Rated Group . | . . . Highest-Rated Ally . | . . . Total Orders . | . . . Ally Attacks . | . . . Total Damage . | . . . Kills . | . . . Allies Corrupted . | . . . Allies Melted . | . . . Intel | -11 -10 -9 ------- Run | Yrd Mat Mat Active Infowar (turns) 416 | 34 183 199 Seismic 416 | 34 183 199 Robot Analysis Total . | . . . Derelict Logs Recovered . | . . . Drone Launches . | . . . Drone Recoveries . | . . . Exploration | -11 -10 -9 ------------- Run | Yrd Mat Mat Turns Passed 908 | 152 183 573 Spaces Moved 337 | 53 89 195 Core 1 | 1 . . Treads 176 | 52 89 35 Legs . | . . . Wheels 160 | . . 160 Hover . | . . . Flight . | . . . Fastest Speed 50 | 50 160 100 Average Speed 170 | 157 160 178 Slowest Speed 215 | 160 160 215 Overloaded Moves . | . . . Propulsion Burnouts . | . . . Robots Hopped . | . . . Potential Cave-ins . | . . . Cave-ins Triggered . | . . . Exploration Rate (%) 14 | 5 18 20 Regions Visited 2 Branch Regions . Pre-discovered Areas . | . . . Known Exits Taken . | . . . Unknown Exits Taken 2 | 1 1 . Scrap Searched . | . . . Spaces Dug . | . . . Terrain Destroyed 43 | . 43 . Melee . | . . . Projectile . | . . . AOE 43 | . 43 . Terrain Rammed . | . . . Walls Destroyed . | . . . Machines Disabled . | . . . Actions | -11 -10 -9 --------- Run | Yrd Mat Mat Total 481 | 82 106 293 Wait 4 | . 1 3 Move 335 | 52 88 195 Hop . | . . . Pick Up 5 | 3 . 2 Fast Attach 14 | 7 2 5 Attach 7 | . 1 6 Detach 3 | . 1 2 Swap 3 | . . 3 Drop 2 | . . 2 Fire 108 | 20 13 75 Melee . | . . . Ram . | . . . Kick . | . . . Crush . | . . . Escape Stasis . | . . . Rewire . | . . . Trap . | . . . Miscellaneous . | . . . Route ------- -11/Scrapyard -10/Materials -9/Materials History --------- Turn | Location | Event 35 | -11/Scrapyard | Discovered new exit (range 16) 153 | -11/Scrapyard | Entered Materials 300 | -10/Materials | Build established: Mutant 314 | -10/Materials | Discovered new exit (range 13) 336 | -10/Materials | Entered another Materials area 336 | -9/Materials | Evolved 2 slots: Utility x2 566 | -9/Materials | Lost 4 parts (1p1n1u1w) 768 | -9/Materials | Core integrity fell below 50% 888 | -9/Materials | Core integrity fell below 20% 909 | -9/Materials | Destroyed by S-10 Pest with Light Assault Rifle Last Messages --------------- Acquired Ion Engine. K-01 Serf destroyed. R-06 Scavenger collects Heat Sink. W-16 Scout destroyed. C-30 ARC bursts open, deploying its payload. S-10 Pest unfolds itself. R-06 Scavenger collects Sml. Laser. U-05 Engineer suffers critical hit (Burn). Imp. Ion Engine destroyed. Wheel destroyed. Acquired 10 matter. Destroyed Flight Unit. S-10 Pest destroyed. Acquired 10 matter. G-34 Mercenary destroyed. M-13 Machinist repairs U-05 Engineer Structural Scanner. G-47 Trooper suffers critical hit (Meltdown). Lgt. Nuclear Core melted. U-05 Engineer builds a Door. Map ----- +----------------------------------------------------+ | ????????????????????????""?# ############+###### | | ???????????????????????? ?# | | ???????????#############/### [% | | ??????????? [ "" | | ???????????? [%* "T ##### | | ????????????????####% !! " ## | | ???????????????????# %!! """ ## | | ???????????????????# !! """"" ##! | | ???????????????????#% = """"" ## | | ???????????????????# """"" ## | | ???????????????????# """ ## ! | | ?????????########### """ +| | | ?????????# # """ ## | | ?????????# # """ ############# ## | | ?????????# # #???????????# ## | | ?????????# + #???????????# ## | | ?????????# "" """ # #???????????# ## ## | | ?????????# "Y """ # #???????????# ####? | | ?????????# "" """ ###+##### #???????????# #???? | | ?????????# # ## #???????????# #???? | | ?????????########### s ## #???????????? ????? | | ???????????????????# ## #???????????? ????? | | ???????????????????#"""s ## #???????????? ????? | | ???????????????????#""" w ## #???????????? ????? | | ???????????????????#""" %## #???????????? ????? | | ???????????????????# @## #???????????? ????? | | ???????????????????#""" =%+% #???????????? ????? | | ???????????????????#""" =## #?????????????????? | | ???????????????????#""" ## ! #?????????????????? | | ???????????????????# ## % #?????????????????? | | ???????????????????# ## = #?????????????????? | | ???????????????????######### #?????????????????? | | ??????????????????????????? %=?????????????????? | | ??????????????????????????? ????????????????? | | ??????????????????????????? ???????????????? | | ???????????????????????????##/#####??????????????? | | ?????????????????????????????%"??????????????????? | | ?????????????????????????????" ??????????????????? | | ????????????????????????????? ??????????????????? | | ????????????????????????????? ??????????????????? | | ?????????????????????????????!!??????????????????? | | ?????????????????????????????!! ?????????????????? | | ?????????????????????????????!! ?????????????????? | | ?????????????????????????????? ??????????????????? | | ?????????????????????????????????????????????????? | | ?????????????????????????????????????????????????? | | ?????????????????????????????????????????????????? | | ?????????????????????????????????????????????????? | | ?????????????????????????????????????????????????? | | ?????????????????????????????????????????????????? | +----------------------------------------------------+ Best States ------------- Heat Dissipation 38 Energy Generation 12 Energy Capacity 265 Matter Stores 300 Matter Capacity 300 Sight Range 16 Terrain Scan Density 10 Evasion (%) 40 Recoil Reduction 2 Item Schematics ----------------- None Robot Schematics ------------------ None Fabricated ------------ Nothing Repaired ---------- Nothing Studied --------- None Alien Tech Used ----------------- None Achievements -------------- None Challenges ------------ None Game ------ Seed GammaMomentumNullifier Manual? 0 Play Time 00:08:51 Cumulative 40.7 hours Start 2026.02.25 @ 01:13:08 End 2026.02.25 @ 01:22:18 Sessions 1 Manual Loads 0 Difficulty Rogue Special Mode None Game No. 98 Rogue 98 Adventurer 0 Explorer 0 Win Type - Total 0 Types 0/0/0/0/0/0/0/0/0/0 Lore% 29 Gallery% 36 Achievement% 27 Wizard Run 0 Options --------- Layout 2 ASCII 0 Keyboard 1 Movement Arrows Keybinds 0 Fullscreen 1 Font 24/Smallcaps Map View 50x44 Zoom Use 0% Tactical HUD 0 Map Filters NONE Filters NONE Steam 1 RUN: 6996affa-601a-472c-85e4-20410d0b8790